[Event "SPICE Cup 2014"]
[Site "St. Louis"]
[Date "2014.10.25"]
[Round "7"]
[White "Durabalyi, Vasif"]
[Black "Tan, Justin"]
[Result "1-0"]
[ECO "C25"]
[WhiteElo "2624"]
[BlackElo "2346"]
[PlyCount "131"]
[EventDate "2014.??.??"]
[EventCountry "USA"]
[TimeControl "5400+30"]
[WhiteClock "0:15:16"]
[BlackClock "0:00:34"]

1. e4 {[%emt 0:01:41]} e5 {[%emt 0:00:01]} 2. Nc3 {[%emt 0:01:01]} Nc6 {[%emt
0:00:20]} 3. g3 {[%emt 0:00:26]} Bc5 {[%emt 0:02:40]} 4. Bg2 {[%emt 0:00:30]}
d6 {[%emt 0:00:17]} 5. Na4 {[%emt 0:00:30]} Be6 {[%emt 0:05:14]} 6. d3 {[%emt
0:02:41]} Qd7 {[%emt 0:02:00]} 7. Nxc5 {[%emt 0:00:22]} dxc5 {[%emt 0:00:03]}
8. Be3 {[%emt 0:00:29]} b6 {[%emt 0:00:14]} 9. f4 {[%emt 0:00:47]} f6 {[%emt 0:
02:15]} 10. Nf3 {[%emt 0:00:56]} O-O-O {[%emt 0:04:31]} 11. O-O {[%emt 0:01:57]
} Nge7 {[%emt 0:13:34]} 12. a3 {[%emt 0:02:10]} c4 {[%emt 0:05:07]} 13. fxe5 {
[%emt 0:00:40]} fxe5 {[%emt 0:08:13]} 14. dxc4 {[%emt 0:01:18]} Qxd1 {[%emt 0:
00:27]} 15. Rfxd1 {[%emt 0:00:36]} Bxc4 {[%emt 0:00:32]} 16. b3 {[%emt 0:05:03]
} Be6 {[%emt 0:04:57]} 17. Bg5 {[%emt 0:15:27]} Rxd1+ {[%emt 0:02:53]} 18. Rxd1
{[%emt 0:02:22]} Ng6 {[%emt 0:00:28]} 19. h3 {[%emt 0:05:55]} h6 {[%emt 0:00:
36]} 20. Bc1 {[%emt 0:00:50]} Rd8 {[%emt 0:03:44]} 21. Rxd8+ {[%emt 0:00:25]}
Kxd8 {[%emt 0:00:05]} 22. Bb2 {[%emt 0:00:41]} Ke7 {[%emt 0:02:56]} 23. Kf2 {
[%emt 0:00:28]} a5 {[%emt 0:05:18]} 24. Bf1 {[%emt 0:01:38]} Kf6 {[%emt 0:01:
07]} 25. g4 {[%emt 0:08:00]} Nd8 {[%emt 0:01:40]} 26. Kg3 {[%emt 0:10:42]} Nf7
{[%emt 0:01:13]} 27. h4 {[%emt 0:00:44]} Bc8 {[%emt 0:02:01]} 28. Bc4 {[%emt 0:
03:32]} Be6 {[%emt 0:01:28]} 29. Bb5 {[%emt 0:01:08]} Bc8 {[%emt 0:10:47]} 30.
Bc6 {[%emt 0:02:30]} h5 {[%emt 0:05:25]} 31. gxh5 {[%emt 0:01:38]} Nf4 {[%emt
0:00:04]} 32. Be8 {[%emt 0:00:40]} Nxh5+ {[%emt 0:00:05]} 33. Kf2 {[%emt 0:00:
08]} Bb7 {[%emt 0:00:49]} 34. Nxe5 {[%emt 0:02:15]} Nxe5 {[%emt 0:00:46]} 35.
Bxh5 {[%emt 0:00:07]} Bxe4 {[%emt 0:00:30]} 36. Ke3 {[%emt 0:01:26]} Kf5 {
[%emt 0:00:14]} 37. Bd1 {[%emt 0:00:36]} g6 {[%emt 0:00:54]} 38. Bc3 {[%emt 0:
00:55]} c5 {[%emt 0:00:18]} 39. Be1 {[%emt 0:01:09]} Bc6 {[%emt 0:02:51]} 40.
a4 {[%emt 0:01:34]} Ng4+ {[%emt 0:01:52]} 41. Kd3 {[%emt 0:00:16]} Be4+ {[%emt
0:00:40]} 42. Kd2 {[%emt 0:00:23]} Bc6 {[%emt 0:01:40]} 43. Bg3 {[%emt 0:00:48]
} Ne5 {[%emt 0:02:37]} 44. Be2 {[%emt 0:00:44]} Be4 {[%emt 0:01:44]} 45. Ba6 {
[%emt 0:00:59]} Bc6 {[%emt 0:01:37]} 46. Bf1 {[%emt 0:01:08]} Be4 {[%emt 0:01:
17]} 47. Bh3+ {[%emt 0:01:32]} Kf6 {[%emt 0:00:01]} 48. Bf4 {[%emt 0:00:46]}
Bc6 {[%emt 0:01:41]} 49. Bg5+ {[%emt 0:01:53]} Kf7 {[%emt 0:00:01]} 50. Bd8 {
[%emt 0:01:53]} c4 {[%emt 0:03:05]} 51. Kc3 {[%emt 0:03:16]} cxb3 52. cxb3 {
[%emt 0:00:09]} b5 {[%emt 0:01:09]} 53. axb5 {[%emt 0:00:06]} Bxb5 {[%emt 0:00:
02]} 54. Bxa5 {[%emt 0:00:06]} g5 {[%emt 0:01:30]} 55. Bc7 {[%emt 0:04:02]} g4
{[%emt 0:01:06]} 56. Bg2 {[%emt 0:00:05]} Nf3 {[%emt 0:00:45]} 57. Bxf3 {[%emt
0:00:56]} gxf3 {[%emt 0:00:01]} 58. Bg3 {[%emt 0:00:01]} Kg6 {[%emt 0:00:55]}
59. Kb4 {[%emt 0:01:32]} Be8 {[%emt 0:00:04]} 60. Kc5 {[%emt 0:00:04]} Kf5 {
[%emt 0:00:04]} 61. b4 {[%emt 0:00:12]} Kg4 {[%emt 0:00:06]} 62. Be1 {[%emt 0:
00:07]} Bg6 {[%emt 0:01:53]} 63. b5 {[%emt 0:00:12]} Be4 {[%emt 0:00:03]} 64.
b6 {[%emt 0:00:06]} Kh3 {[%emt 0:00:13]} 65. h5 {[%emt 0:00:13]} Kg2 {[%emt 0:
01:13]} 66. h6 {[%emt 0:00:18]} 1-0

[Event "SPICE Cup 2014"]
[Site "St. Louis"]
[Date "2014.10.25"]
[Round "7"]
[White "Naroditsky, Daniel"]
[Black "Robson, Ray"]
[Result "1/2-1/2"]
[ECO "B52"]
[WhiteElo "2601"]
[BlackElo "2628"]
[PlyCount "24"]
[EventDate "2014.??.??"]
[EventCountry "USA"]
[TimeControl "5400+30"]
[WhiteClock "1:32:39"]
[BlackClock "1:19:57"]

1. e4 {[%emt 0:00:00]} c5 {[%emt 0:00:00]} 2. Nf3 {[%emt 0:00:00]} d6 {[%emt 0:
01:27]} 3. Bb5+ {[%emt 0:00:17]} Bd7 {[%emt 0:00:48]} 4. Bxd7+ {[%emt 0:00:52]}
Qxd7 {[%emt 0:00:11]} 5. O-O {[%emt 0:00:05]} Nf6 {[%emt 0:02:45]} 6. Re1 {
[%emt 0:00:56]} Nc6 {[%emt 0:01:26]} 7. c3 {[%emt 0:00:11]} e6 {[%emt 0:05:00]}
8. d4 {[%emt 0:00:21]} cxd4 {[%emt 0:02:19]} 9. cxd4 {[%emt 0:00:06]} d5 {
[%emt 0:00:19]} 10. e5 {[%emt 0:00:12]} Ne4 {[%emt 0:00:35]} 11. Nbd2 {[%emt 0:
00:14]} Nxd2 {[%emt 0:00:22]} 12. Bxd2 {[%emt 0:00:07]} Be7 {[%emt 0:00:51]}
1/2-1/2

[Event "SPICE Cup 2014"]
[Site "St. Louis"]
[Date "2014.10.25"]
[Round "8"]
[White "Naroditsky, Daniel"]
[Black "Troff, Kayden W"]
[Result "1-0"]
[ECO "A48"]
[WhiteElo "2601"]
[BlackElo "2532"]
[PlyCount "85"]
[EventDate "2014.??.??"]
[EventCountry "USA"]
[TimeControl "5400+30"]
[WhiteClock "0:06:09"]
[BlackClock "0:00:57"]

1. d4 {[%emt 0:00:00]} Nf6 {[%emt 0:00:00]} 2. Nf3 {[%emt 0:00:00]} g6 {[%emt
0:00:00]} 3. Nbd2 {[%emt 0:00:08]} d5 {[%emt 0:05:45]} 4. e3 {[%emt 0:00:11]}
Bg7 {[%emt 0:00:41]} 5. b4 {[%emt 0:00:10]} O-O {[%emt 0:01:32]} 6. Bb2 {[%emt
0:00:10]} c6 {[%emt 0:06:13]} 7. c4 {[%emt 0:00:48]} a5 {[%emt 0:05:39]} 8. b5
{[%emt 0:00:24]} dxc4 {[%emt 0:01:06]} 9. Bxc4 {[%emt 0:15:40]} Ne8 {[%emt 0:
10:01]} 10. bxc6 {[%emt 0:09:11]} Nxc6 {[%emt 0:00:35]} 11. O-O {[%emt 0:00:25]
} Nd6 {[%emt 0:07:32]} 12. Be2 {[%emt 0:05:27]} b5 {[%emt 0:03:19]} 13. Ne5 {
[%emt 0:14:49]} Nxe5 {[%emt 0:09:20]} 14. dxe5 {[%emt 0:00:01]} Be6 {[%emt 0:
03:06]} 15. Qb1 {[%emt 0:07:48]} Nc4 {[%emt 0:03:43]} 16. Nxc4 {[%emt 0:00:08]}
Bxc4 {[%emt 0:02:18]} 17. Bxc4 {[%emt 0:00:05]} bxc4 {[%emt 0:00:06]} 18. Qe4 {
[%emt 0:05:02]} Rb8 {[%emt 0:08:03]} 19. Bc3 {[%emt 0:02:02]} Qc7 {[%emt 0:06:
30]} 20. Rfd1 {[%emt 0:02:30]} Qc5 {[%emt 0:03:49]} 21. Rac1 {[%emt 0:04:57]}
Rfc8 {[%emt 0:02:48]} 22. h4 {[%emt 0:04:09]} e6 {[%emt 0:07:45]} 23. h5 {
[%emt 0:01:45]} Bf8 {[%emt 0:02:00]} 24. Qf4 {[%emt 0:04:11]} Rd8 {[%emt 0:02:
42]} 25. Bd4 {[%emt 0:01:09]} Qc6 {[%emt 0:01:47]} 26. Rd2 {[%emt 0:01:57]} Rb4
{[%emt 0:01:02]} 27. Rdc2 {[%emt 0:00:44]} Qb5 {[%emt 0:01:26]} 28. Kh2 {[%emt
0:02:06]} Be7 {[%emt 0:00:58]} 29. Rc3 {[%emt 0:03:30]} Rc8 {[%emt 0:00:40]}
30. e4 {[%emt 0:01:07]} Rb1 {[%emt 0:03:11]} 31. hxg6 {[%emt 0:03:16]} fxg6 {
[%emt 0:01:16]} 32. Qg4 {[%emt 0:00:32]} Rc6 {[%emt 0:00:28]} 33. a4 {[%emt 0:
01:50]} Qb8 {[%emt 0:00:32]} 34. Rxb1 {[%emt 0:00:06]} Qxb1 {[%emt 0:00:04]}
35. Rxc4 {[%emt 0:00:20]} Qb7 {[%emt 0:00:36]} 36. Be3 {[%emt 0:01:27]} Qc8 {
[%emt 0:00:35]} 37. Rd4 {[%emt 0:01:03]} Rc4 {[%emt 0:00:28]} 38. Rd1 {[%emt 0:
02:35]} Qc6 {[%emt 0:00:36]} 39. Rd6 {[%emt 0:03:19]} Bxd6 {[%emt 0:00:32]} 40.
Qxe6+ {[%emt 0:00:02]} Kg7 {[%emt 0:00:38]} 41. Qf6+ {[%emt 0:00:01]} Kg8 {
[%emt 0:00:10]} 42. exd6 {[%emt 0:00:14]} Qxe4 {[%emt 0:00:31]} 43. d7 {[%emt
0:00:02]} 1-0

[Event "SPICE Cup 2014"]
[Site "St. Louis"]
[Date "2014.10.25"]
[Round "8"]
[White "Nyzhnyk, Illya"]
[Black "Preotu, Razvan"]
[Result "1-0"]
[ECO "A48"]
[WhiteElo "2613"]
[BlackElo "2405"]
[PlyCount "114"]
[EventDate "2014.??.??"]
[EventCountry "USA"]
[TimeControl "5400+30"]
[WhiteClock "0:32:58"]
[BlackClock "0:01:34"]

1. d4 {[%emt 0:00:09]} Nf6 {[%emt 0:00:00]} 2. Nf3 {[%emt 0:00:05]} g6 {[%emt
0:00:02]} 3. c4 {[%emt 0:00:06]} Bg7 {[%emt 0:00:17]} 4. Nc3 {[%emt 0:00:40]}
O-O {[%emt 0:00:32]} 5. Bg5 {[%emt 0:00:07]} d6 {[%emt 0:01:26]} 6. e3 {[%emt
0:00:08]} c6 {[%emt 0:03:03]} 7. Be2 {[%emt 0:00:06]} Bg4 {[%emt 0:03:28]} 8.
h3 {[%emt 0:01:32]} Bxf3 {[%emt 0:00:47]} 9. Bxf3 {[%emt 0:00:42]} Nbd7 {[%emt
0:08:18]} 10. O-O {[%emt 0:00:09]} a5 {[%emt 0:02:27]} 11. Qc2 {[%emt 0:01:17]}
Ne8 {[%emt 0:06:23]} 12. Rad1 {[%emt 0:01:34]} f6 {[%emt 0:11:32]} 13. Bh4 {
[%emt 0:00:55]} g5 {[%emt 0:02:02]} 14. Bg3 {[%emt 0:00:17]} f5 {[%emt 0:00:07]
} 15. Bh2 {[%emt 0:14:38]} e5 {[%emt 0:04:31]} 16. Qb3 {[%emt 0:00:03]} Qb6 {
[%emt 0:08:52]} 17. Na4 {[%emt 0:13:43]} Qxb3 {[%emt 0:02:28]} 18. axb3 {[%emt
0:00:05]} Rf7 {[%emt 0:08:57]} 19. d5 {[%emt 0:03:20]} c5 {[%emt 0:02:01]} 20.
e4 {[%emt 0:00:54]} fxe4 {[%emt 0:04:27]} 21. Bxe4 {[%emt 0:00:06]} Nc7 {[%emt
0:02:03]} 22. Nc3 {[%emt 0:02:49]} Nb6 {[%emt 0:06:59]} 23. Bc2 {[%emt 0:01:07]
} Bf8 {[%emt 0:01:28]} 24. Ne4 {[%emt 0:00:12]} h6 {[%emt 0:02:39]} 25. Nc3 {
[%emt 0:02:38]} Nc8 {[%emt 0:01:44]} 26. g3 {[%emt 0:03:37]} Ne7 {[%emt 0:04:
12]} 27. f4 {[%emt 0:00:38]} Nf5 {[%emt 0:00:20]} 28. fxe5 {[%emt 0:01:05]} Ne3
{[%emt 0:00:28]} 29. Rxf7 {[%emt 0:00:16]} Kxf7 {[%emt 0:00:08]} 30. e6+ {
[%emt 0:00:03]} Ke7 {[%emt 0:00:22]} 31. Rc1 {[%emt 0:04:07]} Bg7 {[%emt 0:00:
37]} 32. Kf2 {[%emt 0:02:43]} Nxc2 {[%emt 0:01:04]} 33. Rxc2 {[%emt 0:00:04]}
b5 {[%emt 0:01:09]} 34. g4 {[%emt 0:02:02]} a4 {[%emt 0:01:03]} 35. Ne4 {[%emt
0:02:34]} Ne8 {[%emt 0:00:12]} 36. bxa4 {[%emt 0:00:05]} bxc4 {[%emt 0:02:57]}
37. Rxc4 {[%emt 0:01:28]} Bxb2 {[%emt 0:00:49]} 38. Ke2 {[%emt 0:01:02]} Ra6 {
[%emt 0:00:36]} 39. Ng3 {[%emt 0:04:12]} Be5 {[%emt 0:01:08]} 40. Nf5+ {[%emt
0:04:02]} Kf6 {[%emt 0:00:08]} 41. Bxe5+ {[%emt 0:01:09]} Kxe5 {[%emt 0:00:22]}
42. Ne3 {[%emt 0:00:06]} Nc7 {[%emt 0:01:12]} 43. Kd3 {[%emt 0:00:44]} Ra8 {
[%emt 0:01:12]} 44. Re4+ {[%emt 0:00:30]} Kf6 {[%emt 0:00:06]} 45. Kc2 {[%emt
0:00:40]} Ne8 {[%emt 0:03:36]} 46. Nf5 {[%emt 0:00:52]} h5 {[%emt 0:01:18]} 47.
e7 {[%emt 0:02:16]} hxg4 {[%emt 0:00:06]} 48. hxg4 {[%emt 0:00:03]} Kf7 {[%emt
0:00:41]} 49. Kb3 {[%emt 0:00:23]} Rb8+ {[%emt 0:00:13]} 50. Ka2 {[%emt 0:00:
54]} Ra8 {[%emt 0:00:38]} 51. Ka3 {[%emt 0:00:06]} Ra5 {[%emt 0:00:10]} 52. Re1
{[%emt 0:00:30]} c4 {[%emt 0:00:30]} 53. Rh1 {[%emt 0:00:27]} Rxd5 {[%emt 0:00:
18]} 54. Rh8 {[%emt 0:00:39]} Rd3+ {[%emt 0:03:05]} 55. Kb2 {[%emt 0:00:39]}
Nc7 {[%emt 0:00:47]} 56. Rf8+ {[%emt 0:00:06]} Ke6 {[%emt 0:00:26]} 57. Rc8 {
[%emt 0:00:08]} Kd5 1-0

[Event "SPICE Cup 2014"]
[Site "St. Louis"]
[Date "2014.10.25"]
[Round "8"]
[White "Robson, Ray"]
[Black "Le, Quang Liem"]
[Result "1-0"]
[ECO "C11"]
[WhiteElo "2628"]
[BlackElo "2706"]
[PlyCount "75"]
[EventDate "2014.??.??"]
[EventCountry "USA"]
[TimeControl "5400+30"]
[WhiteClock "0:15:41"]
[BlackClock "0:21:25"]

1. e4 {[%emt 0:00:00]} e6 {[%emt 0:01:45]} 2. d4 {[%emt 0:00:00]} d5 {[%emt 0:
00:13]} 3. Nc3 {[%emt 0:00:00]} Nf6 {[%emt 0:00:20]} 4. e5 {[%emt 0:00:20]}
Nfd7 {[%emt 0:00:13]} 5. f4 {[%emt 0:00:22]} c5 {[%emt 0:00:16]} 6. Nf3 {[%emt
0:00:19]} Nc6 {[%emt 0:00:13]} 7. Be3 {[%emt 0:00:18]} a6 {[%emt 0:00:18]} 8.
Qd2 {[%emt 0:00:29]} b5 {[%emt 0:00:13]} 9. dxc5 {[%emt 0:01:14]} Bxc5 {[%emt
0:00:16]} 10. Bd3 {[%emt 0:00:46]} Qb6 {[%emt 0:00:37]} 11. Bf2 {[%emt 0:00:33]
} b4 {[%emt 0:10:55]} 12. Na4 {[%emt 0:00:58]} Bxf2+ {[%emt 0:00:11]} 13. Qxf2
{[%emt 0:00:05]} Qxf2+ {[%emt 0:00:19]} 14. Kxf2 {[%emt 0:00:05]} a5 {[%emt 0:
00:28]} 15. Rhc1 {[%emt 0:15:30]} Ke7 {[%emt 0:37:25]} 16. c4 {[%emt 0:05:12]}
dxc4 {[%emt 0:10:06]} 17. Be4 {[%emt 0:03:32]} Bb7 {[%emt 0:00:31]} 18. Rxc4 {
[%emt 0:00:19]} Rhc8 {[%emt 0:00:11]} 19. Rac1 {[%emt 0:07:27]} Nd8 {[%emt 0:
00:37]} 20. Bxb7 {[%emt 0:01:36]} Rxc4 {[%emt 0:00:08]} 21. Rxc4 {[%emt 0:00:
06]} Nxb7 {[%emt 0:00:13]} 22. Rc7 {[%emt 0:16:27]} Rb8 {[%emt 0:00:10]} 23.
Nd4 {[%emt 0:09:15]} Kd8 {[%emt 0:00:22]} 24. Rc4 {[%emt 0:00:37]} Ra8 {[%emt
0:00:10]} 25. Kf3 {[%emt 0:02:18]} Ra6 {[%emt 0:02:15]} 26. Nb5 {[%emt 0:08:52]
} Ra8 {[%emt 0:00:20]} 27. Rc7 {[%emt 0:01:09]} Rb8 {[%emt 0:00:10]} 28. Ke3 {
[%emt 0:01:13]} g5 {[%emt 0:02:27]} 29. g3 {[%emt 0:08:34]} g4 {[%emt 0:00:59]}
30. Kd4 {[%emt 0:01:27]} f6 {[%emt 0:02:10]} 31. exf6 {[%emt 0:02:36]} Nd6 {
[%emt 0:06:29]} 32. Rxd7+ {[%emt 0:01:05]} Kxd7 {[%emt 0:00:07]} 33. Nc5+ {
[%emt 0:00:04]} Kc6 {[%emt 0:00:12]} 34. Na7+ {[%emt 0:00:04]} Kb6 {[%emt 0:04:
26]} 35. Nd7+ {[%emt 0:00:06]} Kxa7 {[%emt 0:00:16]} 36. Nxb8 {[%emt 0:00:08]}
Kxb8 {[%emt 0:00:11]} 37. Ke5 {[%emt 0:00:06]} Kc7 {[%emt 0:00:53]} 38. Kxe6 {
[%emt 0:00:07]} 1-0

[Event "SPICE Cup 2014"]
[Site "St. Louis"]
[Date "2014.10.25"]
[Round "8"]
[White "Sevian, Samuel"]
[Black "Corrales Jimenez, Fidel"]
[Result "1/2-1/2"]
[ECO "B76"]
[WhiteElo "2484"]
[BlackElo "2532"]
[PlyCount "139"]
[EventDate "2014.??.??"]
[EventCountry "USA"]
[TimeControl "5400+30"]
[WhiteClock "0:06:22"]
[BlackClock "0:15:53"]

1. e4 {[%emt 0:04:46]} c5 {[%emt 0:00:00]} 2. Nf3 {[%emt 0:00:09]} d6 {[%emt 0:
00:00]} 3. d4 {[%emt 0:00:06]} cxd4 {[%emt 0:00:00]} 4. Nxd4 {[%emt 0:00:05]}
Nf6 {[%emt 0:00:00]} 5. Nc3 {[%emt 0:00:10]} g6 {[%emt 0:01:37]} 6. Be3 {[%emt
0:00:56]} Bg7 {[%emt 0:00:04]} 7. f3 {[%emt 0:00:07]} O-O {[%emt 0:00:06]} 8.
Qd2 {[%emt 0:00:04]} Nc6 {[%emt 0:00:05]} 9. O-O-O {[%emt 0:00:06]} d5 {[%emt
0:00:08]} 10. Kb1 {[%emt 0:00:07]} e6 {[%emt 0:02:26]} 11. g4 {[%emt 0:00:18]}
Re8 {[%emt 0:05:14]} 12. Nxc6 {[%emt 0:09:01]} bxc6 {[%emt 0:00:19]} 13. Bh6 {
[%emt 0:00:05]} Bxh6 {[%emt 0:04:48]} 14. Qxh6 {[%emt 0:00:09]} Rb8 {[%emt 0:
00:10]} 15. b3 {[%emt 0:01:06]} Nd7 {[%emt 0:00:57]} 16. f4 {[%emt 0:12:53]}
Qa5 {[%emt 0:02:04]} 17. Rd3 {[%emt 0:04:44]} d4 {[%emt 0:03:21]} 18. Nd1 {
[%emt 0:01:07]} Nf8 {[%emt 0:12:26]} 19. Rg3 {[%emt 0:13:52]} Qe1 {[%emt 0:07:
23]} 20. f5 {[%emt 0:01:38]} Qxd1+ {[%emt 0:01:43]} 21. Kb2 {[%emt 0:00:06]}
exf5 {[%emt 0:00:10]} 22. gxf5 {[%emt 0:09:40]} Bxf5 {[%emt 0:20:26]} 23. exf5
{[%emt 0:15:30]} Re1 {[%emt 0:12:38]} 24. Bc4 {[%emt 0:01:27]} Rxh1 {[%emt 0:
06:29]} 25. fxg6 {[%emt 0:01:42]} hxg6 {[%emt 0:00:28]} 26. Rxg6+ {[%emt 0:00:
11]} Nxg6 {[%emt 0:00:05]} 27. Qxg6+ {[%emt 0:00:09]} Kh8 {[%emt 0:00:02]} 28.
Qf6+ {[%emt 0:01:22]} Kh7 {[%emt 0:00:09]} 29. Qxf7+ {[%emt 0:00:11]} Kh6 {
[%emt 0:00:24]} 30. Qf6+ {[%emt 0:04:19]} Kh7 {[%emt 0:01:30]} 31. Qf5+ {[%emt
0:02:21]} Kh6 {[%emt 0:00:53]} 32. Qf6+ {[%emt 0:08:44]} Kh7 {[%emt 0:00:01]}
33. Bd3+ {[%emt 0:01:36]} Kg8 {[%emt 0:00:07]} 34. Qg6+ {[%emt 0:01:06]} Kf8 {
[%emt 0:00:05]} 35. Qf6+ {[%emt 0:00:49]} Kg8 {[%emt 0:00:07]} 36. Qg6+ {[%emt
0:00:15]} Kf8 {[%emt 0:00:05]} 37. Qd6+ {[%emt 0:00:14]} Kf7 {[%emt 0:01:35]}
38. Qc7+ {[%emt 0:00:15]} Kf6 {[%emt 0:01:06]} 39. Qxc6+ {[%emt 0:01:48]} Ke7 {
[%emt 0:00:42]} 40. Qe4+ {[%emt 0:00:37]} Kf7 {[%emt 0:00:32]} 41. Qf5+ {[%emt
0:00:22]} Ke7 {[%emt 0:00:29]} 42. Qe5+ {[%emt 0:00:25]} Kf7 {[%emt 0:00:01]}
43. Qc7+ {[%emt 0:00:10]} Kf6 {[%emt 0:00:16]} 44. Qd6+ {[%emt 0:00:23]} Kf7 {
[%emt 0:00:14]} 45. Bc4+ {[%emt 0:01:08]} Kg7 {[%emt 0:00:13]} 46. Qe7+ {[%emt
0:01:04]} Kh6 {[%emt 0:00:15]} 47. Qf6+ {[%emt 0:00:09]} Kh7 {[%emt 0:00:05]}
48. Qh4+ {[%emt 0:00:53]} Kg6 {[%emt 0:00:07]} 49. Bd3+ {[%emt 0:00:30]} Kf7 {
[%emt 0:00:10]} 50. Qf4+ {[%emt 0:00:11]} Ke7 {[%emt 0:00:24]} 51. Qg5+ {[%emt
0:00:13]} Kf8 {[%emt 0:02:09]} 52. Qc5+ {[%emt 0:01:08]} Kg8 {[%emt 0:02:44]}
53. Bc4+ {[%emt 0:00:28]} Kh7 {[%emt 0:01:52]} 54. Qe7+ {[%emt 0:00:33]} Kh6 {
[%emt 0:00:32]} 55. Qf6+ {[%emt 0:00:31]} Kh7 {[%emt 0:01:04]} 56. Bd3+ {[%emt
0:00:59]} Kg8 {[%emt 0:00:01]} 57. Qg5+ {[%emt 0:00:12]} Kf8 {[%emt 0:00:43]}
58. Qh6+ {[%emt 0:00:22]} Ke7 {[%emt 0:00:47]} 59. Qg7+ {[%emt 0:00:50]} Ke6 {
[%emt 0:00:09]} 60. Bc4+ {[%emt 0:00:20]} Kf5 {[%emt 0:00:02]} 61. Bd3+ {[%emt
0:00:08]} Ke6 {[%emt 0:00:06]} 62. Qg6+ {[%emt 0:00:22]} Ke7 {[%emt 0:00:02]}
63. Qe4+ {[%emt 0:00:33]} Kf8 {[%emt 0:02:09]} 64. Qf4+ {[%emt 0:00:07]} Ke7 {
[%emt 0:00:46]} 65. Qe5+ {[%emt 0:00:27]} Kf7 {[%emt 0:00:08]} 66. Bc4+ {[%emt
0:00:33]} Kg6 {[%emt 0:00:01]} 67. Qg3+ {[%emt 0:00:53]} Kf5 {[%emt 0:01:16]}
68. Bd3+ {[%emt 0:00:22]} Ke6 {[%emt 0:00:33]} 69. Qg6+ {[%emt 0:00:13]} Ke7 {
[%emt 0:00:54]} 70. Qg5+ {[%emt 0:00:18]} 1/2-1/2

[Event "SPICE Cup 2014"]
[Site "St. Louis"]
[Date "2014.10.25"]
[Round "8"]
[White "Vera, Reinaldo"]
[Black "Leon Hoyos, Manuel"]
[Result "0-1"]
[ECO "E10"]
[WhiteElo "2449"]
[BlackElo "2512"]
[PlyCount "74"]
[EventDate "2014.??.??"]
[EventCountry "USA"]
[TimeControl "5400+30"]
[WhiteClock "0:00:53"]
[BlackClock "0:17:28"]

1. d4 {[%emt 0:09:53]} Nf6 {[%emt 0:00:00]} 2. Nf3 {[%emt 0:00:09]} c5 {[%emt
0:00:35]} 3. d5 {[%emt 0:00:02]} e6 {[%emt 0:00:29]} 4. c4 {[%emt 0:00:02]} b5
{[%emt 0:01:15]} 5. dxe6 fxe6 {[%emt 0:00:05]} 6. cxb5 {[%emt 0:00:16]} d5 {
[%emt 0:00:02]} 7. e3 {[%emt 0:00:35]} Bd6 {[%emt 0:01:17]} 8. b3 {[%emt 0:04:
20]} O-O {[%emt 0:02:16]} 9. Bb2 {[%emt 0:00:16]} Nbd7 {[%emt 0:03:41]} 10.
Nbd2 {[%emt 0:01:05]} Bb7 {[%emt 0:04:46]} 11. Be2 {[%emt 0:05:17]} Qc7 {[%emt
0:01:09]} 12. O-O {[%emt 0:02:24]} Rae8 {[%emt 0:02:46]} 13. Qc2 {[%emt 0:03:
34]} Kh8 {[%emt 0:03:44]} 14. Rad1 {[%emt 0:05:12]} Nh5 {[%emt 0:28:23]} 15. h3
{[%emt 0:13:29]} Nhf6 {[%emt 0:09:42]} 16. a4 {[%emt 0:01:35]} Qb8 {[%emt 0:01:
31]} 17. Bd3 {[%emt 0:05:40]} Re7 {[%emt 0:02:53]} 18. Rfe1 {[%emt 0:03:11]}
Qe8 {[%emt 0:08:58]} 19. e4 {[%emt 0:02:11]} Nh5 {[%emt 0:01:02]} 20. exd5 {
[%emt 0:02:56]} exd5 21. Rxe7 {[%emt 0:07:53]} Qxe7 {[%emt 0:01:40]} 22. Re1 {
[%emt 0:06:05]} Qf7 {[%emt 0:00:49]} 23. Bxh7 {[%emt 0:08:20]} Nf4 {[%emt 0:00:
02]} 24. Ng5 {[%emt 0:00:27]} Qh5 {[%emt 0:01:38]} 25. Ndf3 {[%emt 0:00:02]}
Nf6 {[%emt 0:02:45]} 26. Bf5 {[%emt 0:02:09]} d4 {[%emt 0:01:52]} 27. Kf1 {
[%emt 0:09:08]} Nxg2 {[%emt 0:03:07]} 28. Bg6 {[%emt 0:03:10]} Nxe1 {[%emt 0:
00:26]} 29. Kxe1 {[%emt 0:00:01]} Qh6 {[%emt 0:01:10]} 30. Bc1 {[%emt 0:00:02]}
Bxf3 {[%emt 0:00:32]} 31. Nf7+ {[%emt 0:01:03]} Rxf7 {[%emt 0:00:02]} 32. Bxh6
{[%emt 0:00:07]} Re7+ {[%emt 0:00:03]} 33. Kf1 {[%emt 0:02:08]} gxh6 {[%emt 0:
00:31]} 34. Qf5 {[%emt 0:00:06]} Be2+ {[%emt 0:00:19]} 35. Kg2 {[%emt 0:01:27]}
Kg7 {[%emt 0:00:03]} 36. h4 {[%emt 0:01:51]} d3 {[%emt 0:00:30]} 37. h5 {[%emt
0:01:31]} d2 {[%emt 0:00:59]} 0-1

[Event "SPICE Cup 2014"]
[Site "St. Louis"]
[Date "2014.10.25"]
[Round "8"]
[White "Yermolinsky, Alex"]
[Black "Durabalyi, Vasif"]
[Result "0-1"]
[ECO "A05"]
[WhiteElo "2516"]
[BlackElo "2624"]
[PlyCount "100"]
[EventDate "2014.??.??"]
[EventCountry "USA"]
[TimeControl "5400+30"]
[WhiteClock "0:01:44"]
[BlackClock "0:05:07"]

1. Nf3 {[%emt 0:00:00]} Nf6 {[%emt 0:05:11]} 2. c4 {[%emt 0:00:00]} g6 {[%emt
0:02:39]} 3. Nc3 {[%emt 0:00:00]} d5 {[%emt 0:00:05]} 4. cxd5 {[%emt 0:01:08]}
Nxd5 {[%emt 0:00:39]} 5. e4 {[%emt 0:04:36]} Nb6 {[%emt 0:02:42]} 6. d4 {[%emt
0:01:13]} Bg7 {[%emt 0:00:18]} 7. Be3 {[%emt 0:02:58]} Bg4 {[%emt 0:03:07]} 8.
Bb5+ {[%emt 0:03:33]} c6 {[%emt 0:03:31]} 9. Be2 {[%emt 0:01:14]} O-O {[%emt 0:
01:27]} 10. O-O {[%emt 0:16:14]} N8d7 {[%emt 0:15:01]} 11. e5 {[%emt 0:08:54]}
Rc8 {[%emt 0:08:37]} 12. Ng5 {[%emt 0:00:58]} Bxe2 {[%emt 0:04:00]} 13. Qxe2 {
[%emt 0:00:28]} h6 {[%emt 0:00:45]} 14. Nge4 {[%emt 0:01:38]} Nd5 {[%emt 0:01:
07]} 15. Rad1 {[%emt 0:04:37]} Nxe3 {[%emt 0:04:47]} 16. Qxe3 {[%emt 0:02:57]}
Nb6 {[%emt 0:06:43]} 17. e6 {[%emt 0:08:44]} f5 {[%emt 0:04:41]} 18. Nc5 {
[%emt 0:02:13]} Rc7 {[%emt 0:00:26]} 19. h4 {[%emt 0:09:50]} Qd6 {[%emt 0:02:
20]} 20. h5 {[%emt 0:00:39]} g5 {[%emt 0:01:58]} 21. Qd3 {[%emt 0:06:09]} Qf4 {
[%emt 0:01:17]} 22. b4 {[%emt 0:03:20]} Qg4 {[%emt 0:03:00]} 23. a4 {[%emt 0:
00:20]} Rd8 {[%emt 0:01:33]} 24. Ne2 {[%emt 0:00:41]} Nd5 {[%emt 0:01:53]} 25.
f3 {[%emt 0:09:46]} Qxh5 {[%emt 0:08:28]} 26. Ng3 {[%emt 0:00:11]} Qg6 {[%emt
0:00:04]} 27. Nxf5 {[%emt 0:03:05]} Kh7 {[%emt 0:00:17]} 28. Qe4 {[%emt 0:02:
26]} Nc3 {[%emt 0:00:33]} 29. Qd3 {[%emt 0:02:02]} Nxd1 {[%emt 0:02:33]} 30.
Rxd1 {[%emt 0:00:07]} Rd5 {[%emt 0:03:12]} 31. g4 {[%emt 0:00:26]} a5 {[%emt 0:
00:03]} 32. Qe4 {[%emt 0:01:38]} axb4 {[%emt 0:01:15]} 33. Kg2 {[%emt 0:00:03]}
b3 {[%emt 0:02:12]} 34. Nxb3 {[%emt 0:01:00]} b6 {[%emt 0:00:07]} 35. Rc1 {
[%emt 0:00:32]} h5 {[%emt 0:00:36]} 36. Rh1 {[%emt 0:02:32]} h4 {[%emt 0:00:00]
} 37. Rc1 {[%emt 0:00:01]} Bf6 {[%emt 0:01:58]} 38. Rc4 {[%emt 0:00:15]} b5 {
[%emt 0:00:22]} 39. axb5 {[%emt 0:01:29]} Rxb5 40. Nc5 {[%emt 0:00:01]} Rb2+ {
[%emt 0:01:33]} 41. Rc2 {[%emt 0:00:09]} Rb4 {[%emt 0:02:59]} 42. Nd7 {[%emt 0:
00:19]} Bg7 {[%emt 0:00:13]} 43. Rxc6 {[%emt 0:00:52]} Ra7 {[%emt 0:00:32]} 44.
Rc2 {[%emt 0:00:13]} Ra1 {[%emt 0:03:13]} 45. Rd2 {[%emt 0:01:22]} Rbb1 {[%emt
0:00:47]} 46. Nxe7 {[%emt 0:00:32]} Rg1+ {[%emt 0:00:26]} 47. Kh2 {[%emt 0:00:
11]} Rh1+ {[%emt 0:00:09]} 48. Kg2 {[%emt 0:01:20]} h3+ {[%emt 0:00:12]} 49.
Kg3 {[%emt 0:00:19]} Rag1+ {[%emt 0:00:07]} 50. Kf2 {[%emt 0:00:01]} Rg2+ {
[%emt 0:00:15]} 0-1